fUST/lending_fUST_20250428
["ID","MTS","AMOUNT","RATE_DAILY","PERIOD"]
[359191937,1745799948931,-491.65837854,0.00020656,2]
[359191938,1745799948954,-400.0,0.00020749,2]
[359191939,1745799948975,-600.0,0.00020822,2]
[359191940,1745799948998,-492.15060849,0.00020934,3]
[359191941,1745799949023,-400.0,0.00021023,2]
[359191942,1745799949050,-400.0,0.00021296,2]
[359191943,1745799949073,-223.0315306,0.00021468,2]
[359191944,1745799949096,-296.17,0.0002157,2]
[359191945,1745799949119,-492.15060849,0.00021693,3]
[359191946,1745799949143,-492.15060849,0.00022452,4]
[359191947,1745799949165,-900.0,0.00022466,2]
[359191948,1745799949192,-231.28369723,0.00022837,2]
[359191949,1745799949214,-335.4387325,0.00023056,2]
[359191950,1745799949235,-500.0,0.00023084,2]
[359191951,1745799949256,-1000.0,0.00023152,2]
[359191952,1745799949281,-1000.0,0.00023152,2]
[359191953,1745799949304,-1000.0,0.00023152,2]
[359191954,1745799949327,-500.0,0.00023158,2]
[359191955,1745799949351,-492.15060849,0.0002321,4]
[359191956,1745799949373,-500.0,0.00023378,2]
[359191957,1745799949397,-499.3,0.0002341,2]
[359191958,1745799949419,-500.0,0.00023434,2]
[359191959,1745799949441,-500.0,0.00023542,2]
[359191960,1745799949464,-500.0,0.00023544,2]
[359191961,1745799949488,-500.0,0.00023651,2]
[359191962,1745799949511,-500.0,0.0002372,2]
[359191963,1745799949533,-2020.893514,0.0002376,2]
[359191964,1745799949556,-500.0,0.0002376,2]
[359191965,1745799949578,-500.0,0.00023773,2]
[359191966,1745799949601,-491.65837854,0.00023774,2]
[359191967,1745799949621,-191.31211697,0.000238,2]
[359191968,1745799949641,-500.0,0.000238,2]
[359191969,1745799949661,-500.21083987,0.000238,2]
[359191970,1745799949683,-500.0,0.000238,2]
[359191971,1745799949705,-500.0,0.000238,2]
[359191972,1745799949726,-500.0,0.00023841,2]
[359191973,1745799949746,-500.0,0.00023871,2]
[359191974,1745799949769,-492.15060849,0.00023969,5]
[359191975,1745799949790,-500.0,0.00023993,2]
[359191976,1745799949811,-7116.47668859,0.00024,2]
[359191977,1745799949832,-2856.46130998,0.00024,2]
[359191978,1745799949852,-2000.0,0.00024,4]
[359191979,1745799949873,-165.76060167,0.00024031,2]
[359191980,1745799949894,-500.0,0.00024042,2]
[359191981,1745799949915,-500.0,0.00024053,2]
[359191982,1745799949936,-500.0,0.00024099,2]
[359191983,1745799949957,-1200.0,0.0002411,2]
[359191984,1745799949979,-500.0,0.00024162,2]
[359191985,1745799949999,-500.0,0.00024173,2]
[359191986,1745799950020,-500.0,0.00024202,2]
[359191987,1745799950042,-239.84119403,0.00024206,2]
[359191988,1745799950065,-500.0,0.00024237,2]
[359191989,1745799950087,-500.0,0.00024244,2]
[359191990,1745799950108,-500.0,0.00024439,2]
[359191991,1745799950128,-433.534452,0.0002445,2]
[359191992,1745799950150,-507.64645112,0.00024467,2]
[359191993,1745799950172,-500.0,0.0002449,2]
[359191994,1745799950196,-500.0,0.0002455,2]
[359191995,1745799950217,-3000.0,0.000246,2]
[359191996,1745799950240,-500.0,0.00024611,2]
[359191997,1745799950261,-390.87769,0.00024614,15]
[359191998,1745799950282,-5000.0,0.00024629,2]
[359191999,1745799950304,-431.32169704,0.00024658,2]
[359192000,1745799950325,-492.15060849,0.00024728,5]
[359192001,1745799950345,-154.2803121,0.0002474,2]
[359192002,1745799950366,-1039.05867823,0.00024773,2]
[359192003,1745799950387,-300.0,0.000248,2]
[359192004,1745799950406,-200.0,0.000248,2]
[359192005,1745799950425,-25373.97931,0.000248,2]
[359192006,1745799950445,-177.55452675,0.00024809,2]
[359192007,1745799950465,-500.0,0.00024873,2]
[359192008,1745799950485,-500.0,0.00024873,2]
[359192009,1745799950505,-500.0,0.00024873,2]
[359192010,1745799950525,-500.0,0.00024873,2]
[359192011,1745799950547,-500.0,0.00024873,2]
[359192012,1745799950570,-500.25181227,0.00024873,2]
[359192013,1745799950592,-500.0,0.00024873,2]
[359192014,1745799950614,-500.0,0.00024873,2]
[359192015,1745799950636,-500.0,0.00024873,2]
[359192016,1745799950658,-500.0,0.00024873,2]
[359192017,1745799950815,-500.0,0.00024873,2]
[359192018,1745799950837,-500.0,0.00024873,2]
[359192019,1745799950859,-500.0,0.00024873,2]
[359192020,1745799950881,-500.0,0.00024873,2]
[359192021,1745799950902,-8457.99310334,0.0002488,2]
[359192022,1745799950922,-49325.70381509,0.0002489,15]
[359192023,1745800011083,-500.0,0.00017673,2]
[359192024,1745800011106,-500.0,0.00017673,2]
[359192025,1745800011129,-809.58243641,0.00023152,2]
[359192026,1745800011151,-1000.0,0.00023152,2]
[359192027,1745800011171,-560.1751766,0.00023887,2]
[359192028,1745800011192,-292.4782,0.00024614,15]
[359192029,1745800011216,-1616.7148112,0.00024631,2]
[359192030,1745800011236,-500.0,0.00024873,2]
[359192031,1745800011257,-500.0,0.00024873,2]
[359192032,1745800011277,-500.0,0.00024873,2]
[359192033,1745800011298,-500.31459216,0.00024873,2]
[359192034,1745800011317,-500.0,0.00024873,2]
[359192035,1745800011337,-500.0,0.00024873,2]
[359192036,1745800011359,-380.12004704,0.00024889,2]
[359192037,1745800011385,-500.0,0.00024889,2]
[359192038,1745800011412,-500.0,0.00024889,2]
[359192039,1745800011439,-500.0,0.00024889,2]
[359192040,1745800011466,-500.0,0.00024889,2]
[359192041,1745800011493,-500.0,0.00024889,2]
[359192042,1745800011518,-500.0,0.00024889,2]
[359192043,1745800011544,-500.0,0.00024889,2]
[359192044,1745800011570,-645.15572426,0.00024889,2]
[359192045,1745800011596,-500.0,0.00024889,2]
[359192046,1745800011618,-485.05212933,0.0002489,15]
[359192048,1745800040113,-500.0,0.00016639,2]
[359192049,1745800040135,-500.0,0.00016639,2]
[359192050,1745800040159,-500.0,0.00023098,2]
[359192051,1745800040180,-876.5,0.00024614,15]
[359192052,1745800040200,-19042.607209,0.0002489,15]
[359192056,1745800049218,-1293.3718489,0.0002464,2]
[359192057,1745800049239,-11076.89684486,0.0002489,15]
[359192058,1745800049261,-50747.95862,0.0002489,2]
[359192059,1745800049282,-500.0,0.00024897,2]
[359192060,1745800049304,-522.87035939,0.00024899,2]
[359192061,1745800049324,-194.44156575,0.00024899,2]
[359192062,1745800049346,-1704.23,0.000249,2]
[359192063,1745800049368,-236286.2168221,0.000249,2]
[359192064,1745800050091,-125752.938138,0.000249,2]
[359192068,1745800176308,303.69,0.00021,10]
[359192114,1745800232527,-707.48,0.00015,2]
[359192116,1745800232538,-250.53289043,0.00015,2]
[359192118,1745800232548,-400.0,0.00016639,2]
[359192119,1745800232559,-400.0,0.00016913,2]
[359192120,1745800232568,-429.41,0.00017187,2]
[359192121,1745800232577,-160.0,0.00017639,2]
[359192122,1745800232586,-500.0,0.0001764,2]
[359192123,1745800232595,-500.0,0.0001764,2]
[359192124,1745800232605,-502.77360756,0.0001764,2]
[359192125,1745800232614,-500.0,0.0001764,2]
[359192126,1745800232624,-207.4,0.0001873,2]
[359192127,1745800232635,-500.0,0.0001985,2]
[359192128,1745800232644,-300.0,0.0001985,2]
[359192129,1745800232654,-215.0738,0.00020099,2]
[359192130,1745800232666,-1501.98115664,0.000212,2]
[359192131,1745800232691,-1536.08718326,0.000212,2]
[359192133,1745800232700,-223.0315306,0.00021468,2]
[359192135,1745800232710,-600.0,0.00021494,2]
[359192136,1745800232719,-14376.73408128,0.00022,2]
[359192138,1745800232729,-231.28369723,0.00022837,2]
[359192140,1745800232738,-900.0,0.00023138,2]
[359192141,1745800232747,-328.10040566,0.000239,5]
[359192142,1745800232756,-730.11226036,0.00023947,2]
[359192143,1745800232766,-225.16019188,0.00024206,2]
[359192144,1745800232775,-328.10040566,0.00024452,5]
[359192145,1745800232784,-1034.6974792,0.0002465,2]
[359192146,1745800232793,-1200.0,0.00024782,2]
[359192147,1745800232802,-307.28648664,0.00024799,2]
[359192148,1745800232813,-500.0,0.00024889,2]
[359192149,1745800232823,-21301.89349929,0.0002489,2]
[359192178,1745800238574,-4072.08581031,0.0002489,2]
[359192179,1745800238583,-949.43289115,0.00024899,2]
[359192180,1745800238593,-125400.61712099,0.000249,2]
[359192181,1745800238604,-638.37299473,0.000249,2]
[359192182,1745800238679,-92745.42435156,0.000249,2]
[359192222,1745800242345,-28125.483,0.000249,2]
[359192223,1745800242428,-14199.45,0.000249,2]
[359192224,1745800242448,-440.52116,0.000249,2]
[359192225,1745800242478,-13972.548682,0.000249,2]
[359192244,1745800245878,-356268.62957972,0.000249,2]
[359192245,1745800245889,-1039.05867822,0.000249,2]
[359192246,1745800246001,-956.37010138,0.00024921,2]
[359192247,1745800246017,-500.0,0.00024973,2]
[359192248,1745800246028,-500.0,0.00024973,2]
[359192249,1745800246038,-509.46466464,0.00024973,2]
[359192250,1745800246047,-500.0,0.00024973,2]
[359192251,1745800246057,-554.15743531,0.00024973,2]
[359192252,1745800246067,-500.0,0.00024973,2]
[359192253,1745800246076,-500.0,0.00024973,2]
[359192254,1745800246086,-500.3249106,0.00024973,2]
[359192255,1745800246095,-500.0,0.00024973,2]
[359192256,1745800246105,-500.0,0.00024973,2]
[359192257,1745800246114,-500.0,0.00024973,2]
[359192258,1745800246123,-63434.948274,0.0002499,2]
[359192259,1745800246133,-60286.96435674,0.00025,2]
[359192260,1745800246143,-9798.089832,0.00025,2]
[359192262,1745800246153,-66529.0,0.00025,2]
[359192263,1745800246163,-26362.98865115,0.00025,4]
[359192264,1745800246173,-2000.0,0.00025,3]
[359192265,1745800246183,-2000.0,0.00025,3]
[359192266,1745800246193,-867.0,0.00025,3]
[359192267,1745800246202,-2000.0,0.00025,3]
[359192268,1745800246211,-2000.0,0.00025,3]
[359192269,1745800246221,-2000.0,0.00025,3]
[359192270,1745800246231,-186.019555,0.00025,15]
[359192271,1745800246241,-36746.65956243,0.00025,5]
[359192272,1745800246251,-150.0,0.00025,2]
[359192273,1745800246260,-95742.0,0.00025,2]
[359192274,1745800246269,-10937.0,0.00025,2]
[359192275,1745800246279,-908.0,0.00025,2]
[359192276,1745800246288,-1002.3228381,0.00025,10]
[359192277,1745800246298,-536.0,0.00025,3]
[359192278,1745800246308,-2000.0,0.00025,14]
[359192279,1745800246319,-150.0,0.00025,2]
[359192280,1745800246328,-880.0,0.00025,2]
[359192281,1745800246337,-116988.0,0.00025,2]
[359192282,1745800246349,-2000.0,0.00025,2]
[359192283,1745800246358,-2000.0,0.00025,2]
[359192284,1745800246368,-160.0,0.00025,17]
[359192285,1745800246379,-2215.31,0.00025,4]
[359192286,1745800246388,-2000.0,0.00025,14]
[359192287,1745800246398,-2000.0,0.00025,14]
[359192288,1745800246408,-2000.0,0.00025,14]
[359192289,1745800246418,-2252.28742856,0.00025,14]
[359192290,1745800247491,-0.71257144,0.00025,14]
[359192291,1745800247501,-500.0,0.00025,2]
[359192292,1745800247511,-16730.99565256,0.00025,2]
[359192293,1745800247731,-1532.177013,0.00025,2]
[359192294,1745800247743,-2105.05000575,0.00025,2]
[359192295,1745800247754,-2587.77732869,0.00025,2]
[359192296,1745800247763,-160.0,0.00025,17]
[359192297,1745800247773,-151.0,0.00025,2]
[359192298,1745800247782,-151.0,0.00025,2]
[359192299,1745800247791,-151.0,0.00025,7]
[359192300,1745800247800,-151.0,0.00025,7]
[359192301,1745800247809,-1957.982969,0.00025,5]
[359192302,1745800247819,-151.0,0.00025,7]
[359192303,1745800247829,-1533.81,0.00025,2]
[359192304,1745800247838,-151.0,0.00025,2]
[359192305,1745800247847,-151.0,0.00025,2]
[359192306,1745800247857,-202.090474,0.00025,2]
[359192307,1745800247866,-328.10040566,0.00025003,5]
[359192308,1745800247875,-1133.3010594,0.00025068,2]
[359192309,1745800247884,-314.4653252,0.00025068,2]
[359192310,1745800247893,-200.00674805,0.0002517,2]
[359192311,1745800247902,-500.0,0.00025205,2]
[359192312,1745800247912,-151.0,0.00025205,7]
[359192313,1745800247921,-1000.0,0.00025329,2]
[359192314,1745800247931,-1350.42502651,0.0002535,15]
[359192315,1745800247941,-900.0,0.00025469,3]
[359192316,1745800247950,-500.0,0.00025479,2]
[359192317,1745800247960,-1000.0,0.000255,2]
[359192318,1745800247969,-328.10040566,0.00025555,6]
[359192319,1745800247979,-153.0,0.00025562,2]
[359192320,1745800247989,-153.0,0.00025562,2]
[359192321,1745800247999,-153.0,0.00025562,2]
[359192322,1745800248008,-153.0,0.00025562,2]
[359192323,1745800248018,-5000.0,0.00025629,2]
[359192324,1745800248027,-500.0,0.00025753,2]
[359192325,1745800248037,-200.0,0.000258,14]
[359192326,1745800248047,-500.0,0.00025973,2]
[359192327,1745800248056,-500.0,0.00025973,2]
[359192328,1745800248067,-614.31758546,0.00025973,2]
[359192329,1745800248077,-500.0,0.00025973,2]
[359192330,1745800248087,-6343.4948274,0.0002599,2]
[359192331,1745800248096,-517.56545402,0.00026,2]
[359192332,1745800248106,-19900.0,0.00026,2]
[359192333,1745800248115,-986.13632258,0.00026,7]
[359192334,1745800248176,-1176.86367742,0.00026,7]
[359192335,1745800248186,-1203.03712358,0.00026,7]
[359192336,1745800248266,-623.96287642,0.00026,7]
[359192337,1745800248276,-2000.0,0.00026,2]
[359192338,1745800248286,-2000.0,0.00026,2]
[359192339,1745800248295,-160.0,0.00026,20]
[359192340,1745800248306,-160.0,0.00026,20]
[359192341,1745800248321,-300.0,0.00026,2]
[359192342,1745800248331,-332.53086992,0.00026027,2]
[359192343,1745800248341,-168.239752,0.00026027,2]
[359192344,1745800248351,-328.10040566,0.00026107,6]
[359192345,1745800248361,-500.0,0.00026164,7]
[359192346,1745800248371,-1500.0,0.00026425,2]
[359192347,1745800248381,-5000.0,0.00026629,2]
[359192348,1745800248391,-328.10040566,0.00026659,6]
[359192349,1745800248401,-307.28648658,0.00026876,2]
[359192350,1745800248411,-500.0,0.00026986,7]
[359192351,1745800248420,-6343.4948274,0.0002699,2]
[359192352,1745800248430,-160.87848781,0.00026994,2]
[359192353,1745800248439,-500.32238394,0.00026994,2]
[359192354,1745800248449,-3658.49002734,0.00027,2]
[359192355,1745800248458,-339.52357585,0.00027,2]
[359192356,1745800248468,-566.5,0.00027,5]
[359192357,1745800248477,-313.04259526,0.00027,3]
[359192358,1745800248487,-5471.23273813,0.00027,2]
[359192359,1745800248496,-246.25,0.00027,2]
[359192360,1745800248505,-938.699999,0.00027,2]
[359192361,1745800248515,-845.12079803,0.00027,2]
[359192362,1745800248527,-93.57920197,0.00027,2]
[359192363,1745800248536,-160.0,0.00027,23]
[359192364,1745800248545,-319.82,0.00027,23]
[359192365,1745800248555,-200.0,0.00027,7]
[359192366,1745800248563,-81.40861503,0.00027,3]
[359192367,1745800248579,-231.82497764,0.00027,3]
[359192368,1745800248588,-313.23359267,0.00027,3]
[359192369,1745800248598,-201.4580932,0.00027173,2]
[359192370,1745800248608,-328.10040566,0.0002721,7]
[359192371,1745800248617,-500.0,0.00027397,14]
[359192372,1745800248627,-500.0,0.00027397,14]
[359192373,1745800248637,-500.0,0.00027397,14]
[359192374,1745800248646,-500.0,0.00027397,14]
[359192375,1745800248655,-483.26293083,0.00027397,14]
[359192376,1745800248667,-16.73706917,0.00027397,14]
[359192377,1745800248676,-395.14590005,0.00027397,14]
[359192378,1745800248685,-500.51907653,0.00027397,120]
[359192379,1745800248694,-303.27733822,0.00027397,2]
[359192380,1745800248704,-216.27336721,0.00027397,2]
[359192381,1745800248714,-509.53517299,0.00027397,2]
[359192382,1745800248723,-483.0,0.00027397,2]
[359192383,1745800248732,-575.51207583,0.00027397,60]
[359192523,1745801431831,-151.0,0.00018585,2]
[359192524,1745801431842,-151.0,0.0001873,2]
[359192525,1745801431853,-207.4,0.0001873,2]
[359192526,1745801431863,-158.64231768,0.00019795,2]
[359192582,1745801437795,-97.58927432,0.00019795,2]
[359192583,1745801437804,-300.0,0.00020687,2]
[359192584,1745801437813,-1200.0,0.00020687,2]
[359192585,1745801437822,-12579.26882624,0.00020688,2]
[359192586,1745801437831,-692.54502462,0.00020688,2]
[359192587,1745801437848,-147.66548892,0.00020688,2]
[359192588,1745801437857,-421.1409203,0.00020688,2]
[359192589,1745801437866,-160.0,0.00020688,2]
[359192590,1745801437875,-160.0,0.00020692,2]
[359192591,1745801437883,-160.0,0.00020692,2]
[359192592,1745801437892,-160.0,0.00020692,2]
[359192593,1745801437901,-160.0,0.00020692,2]
[359192594,1745801437910,-500.0,0.00020694,2]
[359192595,1745801437918,-303.260451,0.00020695,2]
[359192597,1745801437927,-348.3151761,0.00020713,2]
[359192599,1745801437936,-400.0,0.00020713,2]
[359192601,1745801437946,-400.0,0.00020713,2]
[359192603,1745801437955,-400.0,0.00020713,2]
[359192606,1745801437963,-400.0,0.00020713,2]
[359192609,1745801437973,-400.0,0.00020713,2]
[359192612,1745801437982,-400.0,0.00020713,2]
[359192614,1745801437991,-400.0,0.00020713,2]
[359192616,1745801438000,-400.0,0.00020713,2]
[359192618,1745801438010,-400.0,0.00020713,2]
[359192620,1745801438019,-400.0,0.00020713,2]
[359192622,1745801438030,-400.0,0.00020713,2]
[359192624,1745801438039,-400.0,0.00020713,2]
[359192626,1745801438048,-625.58,0.00020713,2]
[359192628,1745801438057,-400.0,0.00020713,2]
[359192630,1745801438066,-501.1,0.00020713,2]
[359192632,1745801438075,-400.0,0.00020713,2]
[359192634,1745801438085,-400.0,0.00020713,2]
[359192636,1745801438094,-400.0,0.00020713,2]
[359192638,1745801438103,-151.46895522,0.00020713,2]
[359192640,1745801438115,-248.53104478,0.00020713,2]
[359192642,1745801438124,-400.0,0.00020713,2]
[359192644,1745801438132,-400.0,0.00020713,2]
[359192646,1745801438142,-400.0,0.00020713,2]
[359192648,1745801438153,-400.0,0.00020713,2]
[359192650,1745801438162,-533.36423645,0.00020713,2]
[359192652,1745801438171,-400.0,0.00020713,2]
[359192654,1745801438180,-400.0,0.00020713,2]
[359192656,1745801438189,-400.0,0.00020713,2]
[359192658,1745801438200,-400.0,0.00020713,2]
[359192660,1745801438210,-400.0,0.00020713,2]
[359192662,1745801438219,-500.0,0.00020713,2]
[359192664,1745801438229,-400.0,0.00020713,2]
[359192666,1745801438238,-400.0,0.00020713,2]
[359192668,1745801438247,-400.0,0.00020713,2]
[359192670,1745801438256,-400.0,0.00020713,2]
[359192672,1745801438266,-400.0,0.00020713,2]
[359192674,1745801438278,-400.0,0.00020713,2]
[359192676,1745801438287,-400.0,0.00020713,2]
[359192678,1745801438296,-400.0,0.00020713,2]
[359192695,1745801438437,-400.0,0.00020713,2]
[359192697,1745801438447,-500.0,0.00020713,2]
[359192699,1745801438456,-545.0,0.00020714,2]
[359192701,1745801438465,-706.0,0.00020714,2]
[359192703,1745801438475,-2217.0,0.00020714,2]
[359192705,1745801438484,-500.0,0.00020986,2]
[359192707,1745801438493,-500.0,0.00020986,2]
[359192708,1745801438503,-500.0,0.00020986,2]
[359192710,1745801438512,-500.0,0.00020986,2]
[359192711,1745801438523,-500.0,0.00020986,2]
[359192712,1745801438533,-500.0,0.00020986,2]
[359192713,1745801438543,-500.0,0.00020986,2]
[359192714,1745801438552,-500.0,0.00020986,2]
[359192715,1745801438561,-500.0,0.00020986,2]
[359192716,1745801438571,-500.0,0.00020986,2]
[359192717,1745801438580,-500.0,0.00020986,2]
[359192718,1745801438589,-500.0,0.00020986,2]
[359192719,1745801438599,-500.0,0.00020986,2]
[359192720,1745801438608,-500.0,0.00020986,2]
[359192721,1745801438617,-500.0,0.00020986,2]
[359192722,1745801438626,-500.0,0.00020986,2]
[359192723,1745801438635,-500.0,0.00020986,2]
[359192724,1745801438645,-500.0,0.00020986,2]
[359192725,1745801438656,-500.0,0.00020986,2]
[359192726,1745801438665,-500.0,0.00020986,2]
[359192727,1745801438674,-500.0,0.00020986,2]
[359192728,1745801438683,-500.0,0.00020986,2]
[359192729,1745801438692,-615.08727251,0.00020986,2]
[359192730,1745801438701,-500.0,0.00020986,2]
[359192731,1745801438710,-500.0,0.00020986,2]
[359192732,1745801438720,-500.0,0.00020986,2]
[359192733,1745801438730,-500.0,0.00020986,2]
[359192734,1745801438740,-500.0,0.00020986,2]
[359192735,1745801438749,-500.0,0.00020986,2]
[359192736,1745801438760,-500.0,0.00020986,2]
[359192737,1745801438769,-500.0,0.00020986,2]
[359192738,1745801438779,-500.0,0.00020986,2]
[359192739,1745801438788,-500.0,0.00020986,2]
[359192740,1745801438798,-500.0,0.00020986,2]
[359192741,1745801438806,-500.0,0.00020986,2]
[359192742,1745801438817,-500.0,0.00020986,2]
[359192743,1745801438826,-500.0,0.00020986,2]
[359192744,1745801438835,-500.0,0.00020986,2]
[359192745,1745801438844,-500.0,0.00020986,2]
[359192746,1745801438854,-500.0,0.00020986,2]
[359192747,1745801438863,-500.0,0.00020986,2]
[359192748,1745801438871,-500.0,0.00020986,2]
[359192749,1745801438880,-400.0,0.00020987,2]
[359192750,1745801438889,-400.0,0.00020987,2]
[359192751,1745801438898,-400.0,0.00020987,2]
[359192752,1745801438908,-400.0,0.00020987,2]
[359192753,1745801438918,-400.0,0.00020987,2]
[359192754,1745801438928,-400.0,0.00020987,2]
[359192755,1745801438937,-400.0,0.00020987,2]
[359192756,1745801438946,-400.0,0.00020987,2]
[359192757,1745801438956,-400.0,0.00020987,2]
[359192758,1745801438965,-400.0,0.00020987,2]
[359192759,1745801438974,-400.0,0.00020987,2]
[359192760,1745801438983,-400.0,0.00020987,2]
[359192761,1745801438994,-625.58,0.00020987,2]
[359192762,1745801439003,-400.0,0.00020987,2]
[359192763,1745801439012,-501.1,0.00020987,2]
[359192764,1745801439023,-400.0,0.00020987,2]
[359192765,1745801439033,-400.0,0.00020987,2]
[359192766,1745801439041,-400.0,0.00020987,2]
[359192767,1745801439051,-400.0,0.00020987,2]
[359192768,1745801439060,-400.0,0.00020987,2]
[359192769,1745801439069,-400.0,0.00020987,2]
[359192770,1745801439078,-400.0,0.00020987,2]
[359192771,1745801439088,-400.0,0.00020987,2]
[359192772,1745801439096,-400.0,0.00020987,2]
[359192773,1745801439106,-400.0,0.00020987,2]
[359192774,1745801439116,-400.0,0.00020987,2]
[359192775,1745801439126,-400.0,0.00020987,2]
[359192776,1745801439136,-400.0,0.00020987,2]
[359192777,1745801439149,-400.0,0.00020987,2]
[359192778,1745801439159,-400.0,0.00020987,2]
[359192779,1745801439169,-400.0,0.00020987,2]
[359192780,1745801439179,-400.0,0.00020987,2]
[359192781,1745801439188,-400.0,0.00020987,2]
[359192782,1745801439197,-400.0,0.00020987,2]
[359192783,1745801439206,-400.0,0.00020987,2]
[359192784,1745801439216,-400.0,0.00020987,2]
[359192785,1745801439226,-400.0,0.00020987,2]
[359192786,1745801439235,-200.0,0.00021261,2]
[359192787,1745801439244,-200.0,0.00021261,2]
[359192788,1745801439254,-200.0,0.00021261,2]
[359192789,1745801439263,-200.0,0.00021261,2]
[359192790,1745801439275,-400.0,0.00021261,2]
[359192791,1745801439284,-200.0,0.00021261,2]
[359192792,1745801439294,-200.0,0.00021261,2]
[359192793,1745801439303,-400.0,0.00021261,2]
[359192794,1745801439313,-200.0,0.00021261,2]
[359192795,1745801439322,-200.0,0.00021261,2]
[359192796,1745801439332,-207.38327447,0.00021261,2]
[359192797,1745801439340,-200.0,0.00021261,2]
[359192798,1745801439349,-625.58,0.00021261,2]
[359192799,1745801439358,-200.0,0.00021261,2]
[359192800,1745801439367,-501.1,0.00021261,2]
[359192801,1745801439377,-200.0,0.00021261,2]
[359192802,1745801439386,-200.0,0.00021261,2]
[359192803,1745801439395,-200.0,0.00021261,2]
[359192804,1745801439405,-200.0,0.00021261,2]
[359192805,1745801439414,-241.46,0.00021261,2]
[359192806,1745801439424,-200.0,0.00021261,2]
[359192807,1745801439434,-400.0,0.00021261,2]
[359192808,1745801439443,-400.0,0.00021261,2]
[359192809,1745801439453,-400.0,0.00021261,2]
[359192810,1745801439463,-200.0,0.00021261,2]
[359192811,1745801439473,-200.0,0.00021261,2]
[359192812,1745801439482,-200.0,0.00021261,2]
[359192813,1745801439492,-200.0,0.00021261,2]
[359192814,1745801439502,-200.0,0.00021261,2]
[359192815,1745801439511,-200.0,0.00021261,2]
[359192816,1745801439520,-200.0,0.00021261,2]
[359192817,1745801439531,-200.0,0.00021261,2]
[359192818,1745801439541,-200.0,0.00021261,2]
[359192819,1745801439551,-200.0,0.00021261,2]
[359192820,1745801439560,-250.95053919,0.00021261,2]
[359192821,1745801439569,-400.0,0.00021261,2]
[359192822,1745801439579,-200.0,0.00021261,2]
[359192823,1745801439589,-152.0,0.00021301,2]
[359192824,1745801439598,-400.0,0.00021535,2]
[359192825,1745801439608,-400.0,0.00021535,2]
[359192826,1745801439617,-625.58,0.00021535,2]
[359192827,1745801439627,-501.1,0.00021535,2]
[359192828,1745801439636,-400.0,0.00021535,2]
[359192829,1745801439645,-400.0,0.00021535,2]
[359192830,1745801439654,-400.0,0.00021535,2]
[359192831,1745801439663,-400.0,0.00021535,2]
[359192832,1745801439672,-400.0,0.00021809,2]
[359192833,1745801439681,-400.0,0.00021809,2]
[359192834,1745801439691,-625.58,0.00021809,2]
[359192835,1745801439700,-501.1,0.00021809,2]
[359192836,1745801439709,-400.0,0.00021809,2]
[359192837,1745801439719,-400.0,0.00021809,2]
[359192839,1745801439729,-400.0,0.00021809,2]
[359192840,1745801439741,-400.0,0.00021809,2]
[359192841,1745801439751,-258.48808889,0.000219,3]